[Event "Late-Titled-Tuesday-Blitz-June-04-2024"]
[Site "Chess.com"]
[Date "2024.06.04"]
[Round "1"]
[White "cristiano78"]
[Black "HalfIsCrayfish"]
[Result "1-0"]
[WhiteElo "2241"]
[BlackElo "2548"]
[TimeControl "180+1"]
[EndTime "14:06:48 PDT"]
[Termination "cristiano78 won by resignation"]

1. d4 {[%clk 0:02:59.6]} 1... Nf6 {[%clk 0:02:59.5]} 2. c4 {[%clk 0:02:59.6]}
2... g6 {[%clk 0:02:59.6]} 3. Nc3 {[%clk 0:02:59.5]} 3... d5 {[%clk 0:03:00.2]}
4. Bf4 {[%clk 0:02:59.3]} 4... Bg7 {[%clk 0:03:00.2]} 5. e3 {[%clk 0:02:59.7]}
5... O-O {[%clk 0:03:00.6]} 6. Nf3 {[%clk 0:02:59.8]} 6... c5 {[%clk 0:02:59.7]}
7. dxc5 {[%clk 0:03:00.1]} 7... dxc4 {[%clk 0:02:59.5]} 8. Bxc4 {[%clk
0:02:59.7]} 8... Qa5 {[%clk 0:02:58.8]} 9. O-O {[%clk 0:02:59.1]} 9... Qxc5
{[%clk 0:02:58.9]} 10. Bb3 {[%clk 0:02:58.8]} 10... Nc6 {[%clk 0:02:55.8]} 11.
Rc1 {[%clk 0:02:58.6]} 11... Qh5 {[%clk 0:02:56]} 12. h3 {[%clk 0:02:56.9]}
12... Rd8 {[%clk 0:02:55.9]} 13. Qe2 {[%clk 0:02:56.8]} 13... Bf5 {[%clk
0:02:44.9]} 14. Rfd1 {[%clk 0:02:55.9]} 14... Na5 {[%clk 0:02:37.3]} 15. Ne5
{[%clk 0:02:30]} 15... Nxb3 {[%clk 0:02:32.8]} 16. Qxh5 {[%clk 0:02:29.5]} 16...
Nxh5 {[%clk 0:02:32.6]} 17. axb3 {[%clk 0:02:22.9]} 17... Nxf4 {[%clk
0:02:32.5]} 18. exf4 {[%clk 0:02:22.8]} 18... Be6 {[%clk 0:02:32.3]} 19. b4
{[%clk 0:02:16.9]} 19... Bb3 {[%clk 0:02:31.1]} 20. Rxd8+ {[%clk 0:02:16.2]}
20... Rxd8 {[%clk 0:02:32]} 21. Ne4 {[%clk 0:02:12.5]} 21... f6 {[%clk
0:02:28.5]} 22. Nf3 {[%clk 0:02:11.4]} 22... f5 {[%clk 0:02:28.2]} 23. Nc5
{[%clk 0:02:11.5]} 23... Bd5 {[%clk 0:02:25.1]} 24. Ne5 {[%clk 0:02:09.7]} 24...
Rc8 {[%clk 0:02:13.9]} 25. Rd1 {[%clk 0:02:09]} 25... e6 {[%clk 0:02:13.8]} 26.
g4 {[%clk 0:02:02.6]} 26... b6 {[%clk 0:02:12.8]} 27. Ncd7 {[%clk 0:02:01.6]}
27... Rc2 {[%clk 0:02:06.3]} 28. Ra1 {[%clk 0:01:59]} 28... Rc7 {[%clk
0:02:04.4]} 29. b5 {[%clk 0:01:56.9]} 29... Bh6 {[%clk 0:02:02.8]} 30. g5 {[%clk
0:01:54.8]} 30... Bg7 {[%clk 0:02:02.9]} 31. h4 {[%clk 0:01:47.5]} 31... Be4
{[%clk 0:01:28.1]} 32. Nf6+ {[%clk 0:01:45.1]} 32... Bxf6 {[%clk 0:01:28]} 33.
gxf6 {[%clk 0:01:45]} 33... Bd5 {[%clk 0:01:28.7]} 34. f7+ {[%clk 0:01:41]}
34... Kg7 {[%clk 0:01:27.8]} 35. Kh2 {[%clk 0:01:37.7]} 35... Kf8 {[%clk
0:01:27.9]} 36. h5 {[%clk 0:01:36.2]} 36... Bf3 {[%clk 0:00:21.9]} 37. hxg6
{[%clk 0:01:34.2]} 37... hxg6 {[%clk 0:00:20.9]} 38. Ra3 {[%clk 0:01:22.2]}
38... Bh5 {[%clk 0:00:20]} 39. Rd3 {[%clk 0:01:18]} 39... Rc8 {[%clk 0:00:18.7]}
40. Rd7 {[%clk 0:01:15.5]} 40... Kg7 {[%clk 0:00:16.6]} 41. Rxa7 {[%clk
0:01:13.1]} 41... Rf8 {[%clk 0:00:16.9]} 42. Kg3 {[%clk 0:01:09.1]} 42... g5
{[%clk 0:00:17.2]} 43. fxg5 {[%clk 0:01:08.8]} 43... Bg6 {[%clk 0:00:16.7]} 44.
Kf4 {[%clk 0:01:08]} 44... Rh8 {[%clk 0:00:10]} 45. f8=Q+ {[%clk 0:01:02.4]}
45... Kxf8 {[%clk 0:00:09]} 46. Nxg6+ {[%clk 0:01:02.7]} 1-0

[Event "Late-Titled-Tuesday-Blitz-June-04-2024"]
[Site "Chess.com"]
[Date "2024.06.04"]
[Round "1"]
[White "Michalczak"]
[Black "artin10862"]
[Result "1/2-1/2"]
[WhiteElo "2513"]
[BlackElo "2965"]
[TimeControl "180+1"]
[EndTime "14:06:50 PDT"]
[Termination "Game drawn by repetition"]

1. e4 {[%clk 0:02:58.9]} 1... e6 {[%clk 0:02:16]} 2. d4 {[%clk 0:02:57.5]} 2...
d5 {[%clk 0:02:11.9]} 3. Nc3 {[%clk 0:02:57.5]} 3... Bb4 {[%clk 0:02:10.6]} 4.
e5 {[%clk 0:02:56.9]} 4... c5 {[%clk 0:02:08.3]} 5. a3 {[%clk 0:02:56.7]} 5...
Bxc3+ {[%clk 0:02:08.2]} 6. bxc3 {[%clk 0:02:56.6]} 6... Ne7 {[%clk 0:02:08.3]}
7. Qg4 {[%clk 0:02:56.2]} 7... Qc7 {[%clk 0:02:08.3]} 8. Qxg7 {[%clk 0:02:55.6]}
8... Rg8 {[%clk 0:02:08.1]} 9. Qxh7 {[%clk 0:02:56.2]} 9... cxd4 {[%clk
0:02:08.1]} 10. Ne2 {[%clk 0:02:56.6]} 10... dxc3 {[%clk 0:02:05.5]} 11. f4
{[%clk 0:02:56.1]} 11... Nbc6 {[%clk 0:02:03.9]} 12. Qd3 {[%clk 0:02:55.8]}
12... d4 {[%clk 0:02:04]} 13. Nxd4 {[%clk 0:02:56]} 13... Nxd4 {[%clk
0:02:03.7]} 14. Qxd4 {[%clk 0:02:56.9]} 14... Bd7 {[%clk 0:01:51.9]} 15. Rg1
{[%clk 0:02:55.3]} 15... Nf5 {[%clk 0:01:48.8]} 16. Qf2 {[%clk 0:02:54.6]} 16...
O-O-O {[%clk 0:01:40.3]} 17. Qxa7 {[%clk 0:02:48.4]} 17... Bc6 {[%clk
0:01:40.1]} 18. Be3 {[%clk 0:02:34.6]} 18... Nxe3 {[%clk 0:01:24.8]} 19. Qxe3
{[%clk 0:02:35.5]} 19... Rd2 {[%clk 0:01:25.3]} 20. Qxc3 {[%clk 0:02:30.9]}
20... Rd5 {[%clk 0:00:59.1]} 21. g3 {[%clk 0:02:23.7]} 21... Qb6 {[%clk
0:00:34.8]} 22. Rg2 {[%clk 0:02:11.2]} 22... Rgd8 {[%clk 0:00:34.4]} 23. Rf2
{[%clk 0:01:46.1]} 23... Kb8 {[%clk 0:00:20.7]} 24. a4 {[%clk 0:01:39.3]} 24...
Qa7 {[%clk 0:00:18.2]} 25. a5 {[%clk 0:01:28.2]} 25... Rc8 {[%clk 0:00:17.2]}
26. Qb3 {[%clk 0:01:25.1]} 26... Ka8 {[%clk 0:00:14.4]} 27. Qb6 {[%clk 0:01:22]}
27... Rc5 {[%clk 0:00:10.4]} 28. Qxa7+ {[%clk 0:01:09.4]} 28... Kxa7 {[%clk
0:00:11.3]} 29. Bd3 {[%clk 0:01:07.8]} 29... Bd5 {[%clk 0:00:10.6]} 30. g4
{[%clk 0:01:04.2]} 30... Rg8 {[%clk 0:00:10.1]} 31. g5 {[%clk 0:01:04]} 31...
Rh8 {[%clk 0:00:10.8]} 32. Kd2 {[%clk 0:01:02.5]} 32... Rh4 {[%clk 0:00:10.6]}
33. a6 {[%clk 0:00:58.2]} 33... b5 {[%clk 0:00:10.2]} 34. Rg1 {[%clk 0:00:55.7]}
34... Kxa6 {[%clk 0:00:09.9]} 35. g6 {[%clk 0:00:55.2]} 35... fxg6 {[%clk
0:00:10.8]} 36. Rxg6 {[%clk 0:00:54.9]} 36... Ka5 {[%clk 0:00:11.5]} 37. Rg8
{[%clk 0:00:54.1]} 37... Rc7 {[%clk 0:00:11.7]} 38. Rb8 {[%clk 0:00:51.1]} 38...
Bc6 {[%clk 0:00:12]} 39. Ke3 {[%clk 0:00:49.8]} 39... Rh3+ {[%clk 0:00:12.2]}
40. Kd2 {[%clk 0:00:48.7]} 40... Rh4 {[%clk 0:00:12.3]} 41. Rd8 {[%clk
0:00:47.2]} 41... Bd5 {[%clk 0:00:12.3]} 42. Rb8 {[%clk 0:00:43.7]} 42... Bc6
{[%clk 0:00:12.5]} 1/2-1/2

[Event "Late-Titled-Tuesday-Blitz-June-04-2024"]
[Site "Chess.com"]
[Date "2024.06.04"]
[Round "1"]
[White "Engima32"]
[Black "SaraciNderim"]
[Result "0-1"]
[WhiteElo "2473"]
[BlackElo "2899"]
[TimeControl "180+1"]
[EndTime "14:06:50 PDT"]
[Termination "SaraciNderim won by resignation"]

1. d4 {[%clk 0:02:59.6]} 1... Nf6 {[%clk 0:02:58.6]} 2. Nf3 {[%clk 0:03:00]}
2... g6 {[%clk 0:02:58.5]} 3. g3 {[%clk 0:03:00.4]} 3... Bg7 {[%clk 0:02:58.5]}
4. Bg2 {[%clk 0:02:58.6]} 4... b5 {[%clk 0:02:58.7]} 5. O-O {[%clk 0:02:58.3]}
5... Bb7 {[%clk 0:02:58.8]} 6. a4 {[%clk 0:02:57.2]} 6... b4 {[%clk 0:02:58.1]}
7. c3 {[%clk 0:02:57.7]} 7... bxc3 {[%clk 0:02:52.5]} 8. Nxc3 {[%clk 0:02:58]}
8... O-O {[%clk 0:02:51]} 9. Bf4 {[%clk 0:02:57.5]} 9... d6 {[%clk 0:02:51]} 10.
Rc1 {[%clk 0:02:56.8]} 10... Nbd7 {[%clk 0:02:50.3]} 11. Qc2 {[%clk 0:02:49.4]}
11... c5 {[%clk 0:02:47.9]} 12. dxc5 {[%clk 0:02:41.3]} 12... Nxc5 {[%clk
0:02:47.3]} 13. b4 {[%clk 0:02:40.6]} 13... Ne6 {[%clk 0:02:39.3]} 14. Be3
{[%clk 0:02:37]} 14... Rc8 {[%clk 0:02:33.9]} 15. Qb3 {[%clk 0:02:29.7]} 15...
a6 {[%clk 0:02:26.5]} 16. Rfd1 {[%clk 0:02:28.3]} 16... Ng4 {[%clk 0:02:21]} 17.
Bd2 {[%clk 0:02:20.1]} 17... Bxf3 {[%clk 0:01:33]} 18. Bxf3 {[%clk 0:02:18.4]}
18... Nd4 {[%clk 0:01:33.4]} 19. Qd5 {[%clk 0:02:10]} 19... e6 {[%clk
0:01:15.8]} 20. Qb7 {[%clk 0:02:04.1]} 20... Ne5 {[%clk 0:01:02.4]} 21. Bg2
{[%clk 0:01:38.3]} 21... Nb3 {[%clk 0:01:01.8]} 22. Rc2 {[%clk 0:01:33.7]} 22...
Nxd2 {[%clk 0:00:57.3]} 23. Rdxd2 {[%clk 0:01:30.2]} 23... Nc4 {[%clk
0:00:57.5]} 24. Rd3 {[%clk 0:01:30]} 24... d5 {[%clk 0:00:49.7]} 25. Nxd5 {[%clk
0:00:43.3]} 25... exd5 {[%clk 0:00:49.4]} 26. Bxd5 {[%clk 0:00:43.9]} 26... Nd6
{[%clk 0:00:49.8]} 27. Qxa6 {[%clk 0:00:42.6]} 27... Rxc2 {[%clk 0:00:48.9]} 28.
b5 {[%clk 0:00:41]} 28... Rxe2 {[%clk 0:00:46]} 29. b6 {[%clk 0:00:41.3]} 29...
Qf6 {[%clk 0:00:41.1]} 30. Rf3 {[%clk 0:00:40.1]} 30... Re1+ {[%clk 0:00:38.2]}
31. Kg2 {[%clk 0:00:40]} 31... Qe5 {[%clk 0:00:37.8]} 32. Qa5 {[%clk 0:00:35]}
32... Rd1 {[%clk 0:00:27.2]} 33. b7 {[%clk 0:00:20.8]} 33... Qxd5 {[%clk
0:00:26.9]} 34. Qb6 {[%clk 0:00:18.7]} 34... Qxb7 {[%clk 0:00:25.6]} 35. Qe3
{[%clk 0:00:17.8]} 0-1

[Event "Late-Titled-Tuesday-Blitz-June-04-2024"]
[Site "Chess.com"]
[Date "2024.06.04"]
[Round "1"]
[White "TheSilmarils"]
[Black "db-banana"]
[Result "1-0"]
[WhiteElo "2880"]
[BlackElo "2469"]
[TimeControl "180+1"]
[EndTime "14:06:50 PDT"]
[Termination "TheSilmarils won by resignation"]

1. Nf3 {[%clk 0:02:59.8]} 1... Nf6 {[%clk 0:02:58.2]} 2. c4 {[%clk 0:02:59.9]}
2... e6 {[%clk 0:02:55.7]} 3. Nc3 {[%clk 0:03:00.4]} 3... c5 {[%clk 0:02:53.8]}
4. g3 {[%clk 0:03:00]} 4... Nc6 {[%clk 0:02:48]} 5. Bg2 {[%clk 0:03:00.3]} 5...
Be7 {[%clk 0:02:47.5]} 6. O-O {[%clk 0:03:00.7]} 6... d5 {[%clk 0:02:45.8]} 7.
cxd5 {[%clk 0:03:00.7]} 7... exd5 {[%clk 0:02:45.9]} 8. d4 {[%clk 0:03:00.6]}
8... O-O {[%clk 0:02:42.3]} 9. dxc5 {[%clk 0:03:01]} 9... Bxc5 {[%clk
0:02:41.7]} 10. Na4 {[%clk 0:03:01.7]} 10... Bb4 {[%clk 0:02:35.2]} 11. Be3
{[%clk 0:02:57.9]} 11... Re8 {[%clk 0:02:33.7]} 12. Bc5 {[%clk 0:02:51.2]} 12...
Bxc5 {[%clk 0:02:21.2]} 13. Nxc5 {[%clk 0:02:52.1]} 13... Ne4 {[%clk 0:02:21.8]}
14. Rc1 {[%clk 0:02:45.2]} 14... Bg4 {[%clk 0:02:11.6]} 15. Nb3 {[%clk
0:01:42.2]} 15... Rc8 {[%clk 0:02:03.1]} 16. h3 {[%clk 0:01:31.4]} 16... Bh5
{[%clk 0:01:51.7]} 17. g4 {[%clk 0:01:31.7]} 17... Bg6 {[%clk 0:01:50.9]} 18.
Nfd4 {[%clk 0:01:26.2]} 18... Qb6 {[%clk 0:01:34.8]} 19. e3 {[%clk 0:01:24.7]}
19... a5 {[%clk 0:01:29.5]} 20. Nxc6 {[%clk 0:01:09.6]} 20... bxc6 {[%clk
0:01:21.3]} 21. Qd4 {[%clk 0:01:09.9]} 21... Qxd4 {[%clk 0:01:12.8]} 22. Nxd4
{[%clk 0:01:10.8]} 22... c5 {[%clk 0:01:06.6]} 23. Ne2 {[%clk 0:01:10]} 23...
Red8 {[%clk 0:00:56.9]} 24. Rfd1 {[%clk 0:01:07.6]} 24... Rb8 {[%clk 0:00:52.2]}
25. b3 {[%clk 0:01:03]} 25... a4 {[%clk 0:00:46.3]} 26. bxa4 {[%clk 0:01:03.2]}
26... Rb2 {[%clk 0:00:37]} 27. Nf4 {[%clk 0:00:56.7]} 27... Nxf2 {[%clk
0:00:29.5]} 28. Rxd5 {[%clk 0:00:56.8]} 28... Rxd5 {[%clk 0:00:28.9]} 29. Bxd5
{[%clk 0:00:57.7]} 29... Nd3 {[%clk 0:00:25.8]} 30. Nxd3 {[%clk 0:00:55.9]}
30... Bxd3 {[%clk 0:00:26]} 31. Rxc5 {[%clk 0:00:54.2]} 31... g5 {[%clk
0:00:17.2]} 32. a5 {[%clk 0:00:52.4]} 32... Rb4 {[%clk 0:00:10.4]} 33. Rc3
{[%clk 0:00:48.7]} 33... Be2 {[%clk 0:00:09.2]} 34. Ra3 {[%clk 0:00:48]} 34...
Rb5 {[%clk 0:00:07.3]} 35. a6 {[%clk 0:00:42.7]} 35... Rxd5 {[%clk 0:00:07]} 36.
a7 {[%clk 0:00:42.5]} 36... Rd1+ {[%clk 0:00:07.2]} 37. Kf2 {[%clk 0:00:42.4]}
1-0

[Event "Late-Titled-Tuesday-Blitz-June-04-2024"]
[Site "Chess.com"]
[Date "2024.06.04"]
[Round "1"]
[White "RebecaJimnz"]
[Black "DirtyKabab"]
[Result "0-1"]
[WhiteElo "2268"]
[BlackElo "2586"]
[TimeControl "180+1"]
[EndTime "14:06:51 PDT"]
[Termination "DirtyKabab won by resignation"]

1. e4 {[%clk 0:03:00.9]} 1... e6 {[%clk 0:02:58.1]} 2. d3 {[%clk 0:03:00.3]}
2... d5 {[%clk 0:02:50.9]} 3. Nd2 {[%clk 0:03:00.4]} 3... a5 {[%clk 0:02:50.6]}
4. Ngf3 {[%clk 0:03:00.8]} 4... a4 {[%clk 0:02:50.3]} 5. a3 {[%clk 0:02:58.9]}
5... c5 {[%clk 0:02:46.9]} 6. g3 {[%clk 0:02:59]} 6... Nc6 {[%clk 0:02:47.1]} 7.
Bg2 {[%clk 0:02:59.3]} 7... g6 {[%clk 0:02:43.7]} 8. O-O {[%clk 0:02:59.3]} 8...
Bg7 {[%clk 0:02:44]} 9. Re1 {[%clk 0:02:57.2]} 9... Nge7 {[%clk 0:02:44.2]} 10.
c3 {[%clk 0:02:53.7]} 10... O-O {[%clk 0:02:42.6]} 11. e5 {[%clk 0:02:52.3]}
11... b6 {[%clk 0:02:26.5]} 12. h4 {[%clk 0:02:50.2]} 12... Ba6 {[%clk
0:02:23.5]} 13. Nf1 {[%clk 0:02:47.1]} 13... Qd7 {[%clk 0:02:04.7]} 14. N1h2
{[%clk 0:02:44.1]} 14... Na5 {[%clk 0:01:46.1]} 15. Ng4 {[%clk 0:02:43]} 15...
Nb3 {[%clk 0:01:43.3]} 16. Rb1 {[%clk 0:01:37.3]} 16... Nxc1 {[%clk 0:01:41.1]}
17. Qxc1 {[%clk 0:01:34.9]} 17... f5 {[%clk 0:01:01.5]} 18. exf6 {[%clk
0:01:28.7]} 18... Bxf6 {[%clk 0:01:01.7]} 19. Nxf6+ {[%clk 0:01:27.6]} 19...
Rxf6 {[%clk 0:01:02.6]} 20. Ne5 {[%clk 0:01:26.1]} 20... Qd6 {[%clk 0:00:59.1]}
21. Ng4 {[%clk 0:01:13.4]} 21... Rff8 {[%clk 0:00:55.7]} 22. Bh3 {[%clk
0:01:04.3]} 22... Nf5 {[%clk 0:00:47.6]} 23. Nh6+ {[%clk 0:00:49.5]} 23... Kg7
{[%clk 0:00:46.4]} 24. Nxf5+ {[%clk 0:00:32.7]} 24... exf5 {[%clk 0:00:46.4]}
25. Qd2 {[%clk 0:00:22]} 25... Rae8 {[%clk 0:00:45]} 26. Bg2 {[%clk 0:00:20.8]}
26... f4 {[%clk 0:00:40.4]} 27. Rxe8 {[%clk 0:00:18.2]} 27... Rxe8 {[%clk
0:00:41.3]} 28. d4 {[%clk 0:00:15.5]} 28... fxg3 {[%clk 0:00:38]} 29. dxc5
{[%clk 0:00:15.3]} 29... Qxc5 {[%clk 0:00:32.5]} 30. Qxd5 {[%clk 0:00:12.6]}
30... gxf2+ {[%clk 0:00:23.9]} 31. Kh1 {[%clk 0:00:10.9]} 31... Qxd5 {[%clk
0:00:21.4]} 32. Bxd5 {[%clk 0:00:06.3]} 32... f1=Q+ {[%clk 0:00:21.3]} 0-1

[Event "Late-Titled-Tuesday-Blitz-June-04-2024"]
[Site "Chess.com"]
[Date "2024.06.04"]
[Round "1"]
[White "Dedic8"]
[Black "mortngabriel"]
[Result "1-0"]
[WhiteElo "2920"]
[BlackElo "2494"]
[TimeControl "180+1"]
[EndTime "14:06:52 PDT"]
[Termination "Dedic8 won on time"]

1. d4 {[%clk 0:02:59.1]} 1... Nf6 {[%clk 0:02:59.5]} 2. c4 {[%clk 0:02:59.5]}
2... e6 {[%clk 0:02:59.4]} 3. Nc3 {[%clk 0:03:00.2]} 3... Bb4 {[%clk 0:02:59.1]}
4. e3 {[%clk 0:03:00.7]} 4... O-O {[%clk 0:02:58.9]} 5. Bd3 {[%clk 0:03:01.3]}
5... d5 {[%clk 0:02:55.7]} 6. a3 {[%clk 0:03:01.4]} 6... Bxc3+ {[%clk
0:02:52.6]} 7. bxc3 {[%clk 0:03:01.5]} 7... dxc4 {[%clk 0:02:53.3]} 8. Bxc4
{[%clk 0:03:02.4]} 8... c5 {[%clk 0:02:53.7]} 9. Ne2 {[%clk 0:03:03.1]} 9... Qc7
{[%clk 0:02:52.6]} 10. Bd3 {[%clk 0:03:03.2]} 10... Nbd7 {[%clk 0:02:50.8]} 11.
O-O {[%clk 0:03:01.5]} 11... e5 {[%clk 0:02:49.9]} 12. e4 {[%clk 0:02:47.1]}
12... cxd4 {[%clk 0:02:37]} 13. cxd4 {[%clk 0:02:47]} 13... exd4 {[%clk
0:02:37.9]} 14. Nxd4 {[%clk 0:02:41.9]} 14... Ne5 {[%clk 0:02:23.8]} 15. Bc2
{[%clk 0:02:38.2]} 15... b6 {[%clk 0:02:12.9]} 16. Nb5 {[%clk 0:01:50.3]} 16...
Qc6 {[%clk 0:01:49.1]} 17. a4 {[%clk 0:01:50.2]} 17... Bb7 {[%clk 0:01:32.5]}
18. Qe2 {[%clk 0:01:21.7]} 18... Rfd8 {[%clk 0:01:05.9]} 19. f3 {[%clk
0:01:05.3]} 19... a6 {[%clk 0:01:04.2]} 20. Na3 {[%clk 0:01:05.6]} 20... Rac8
{[%clk 0:01:03.1]} 21. Be3 {[%clk 0:01:04.1]} 21... Nc4 {[%clk 0:00:57.5]} 22.
Nxc4 {[%clk 0:01:02.2]} 22... Qxc4 {[%clk 0:00:58.4]} 23. Qxc4 {[%clk
0:00:51.6]} 23... Rxc4 {[%clk 0:00:59.3]} 24. Bxb6 {[%clk 0:00:44.2]} 24... Rdc8
{[%clk 0:00:26.6]} 25. Bb3 {[%clk 0:00:42.1]} 25... Rb4 {[%clk 0:00:23.8]} 26.
Rab1 {[%clk 0:00:42.5]} 26... Rxb6 {[%clk 0:00:19.9]} 27. Bxf7+ {[%clk
0:00:42.5]} 27... Kxf7 {[%clk 0:00:20.8]} 28. Rxb6 {[%clk 0:00:43]} 28... Rc7
{[%clk 0:00:17.5]} 29. Rbb1 {[%clk 0:00:37.6]} 29... Nd7 {[%clk 0:00:08.3]} 30.
Rfc1 {[%clk 0:00:37]} 30... Bc6 {[%clk 0:00:03.3]} 31. Kf2 {[%clk 0:00:34.5]}
31... Ke6 {[%clk 0:00:02.3]} 32. Ke3 {[%clk 0:00:34.9]} 32... Ne5 {[%clk
0:00:02.4]} 33. Rc5 {[%clk 0:00:30.2]} 1-0

[Event "Late-Titled-Tuesday-Blitz-June-04-2024"]
[Site "Chess.com"]
[Date "2024.06.04"]
[Round "1"]
[White "LikeWater"]
[Black "i_like_explosions"]
[Result "0-1"]
[WhiteElo "2733"]
[BlackElo "2436"]
[TimeControl "180+1"]
[EndTime "14:06:52 PDT"]
[Termination "i_like_explosions won by resignation"]

1. e4 {[%clk 0:03:00.9]} 1... c5 {[%clk 0:02:59.5]} 2. Nf3 {[%clk 0:03:00.5]}
2... Nc6 {[%clk 0:02:59.2]} 3. Bc4 {[%clk 0:02:58.4]} 3... e6 {[%clk 0:02:59]}
4. O-O {[%clk 0:02:58]} 4... a6 {[%clk 0:02:58.4]} 5. Re1 {[%clk 0:02:54.6]}
5... b5 {[%clk 0:02:56.3]} 6. Bf1 {[%clk 0:02:54]} 6... Nge7 {[%clk 0:02:56.9]}
7. c3 {[%clk 0:02:52.3]} 7... d5 {[%clk 0:02:54.9]} 8. exd5 {[%clk 0:02:53.1]}
8... Nxd5 {[%clk 0:02:54.6]} 9. d4 {[%clk 0:02:53.1]} 9... Be7 {[%clk
0:02:49.3]} 10. a4 {[%clk 0:02:49.4]} 10... b4 {[%clk 0:02:43.9]} 11. c4 {[%clk
0:02:47.9]} 11... Nf6 {[%clk 0:02:35.1]} 12. Be3 {[%clk 0:02:13.7]} 12... cxd4
{[%clk 0:02:31.3]} 13. Nxd4 {[%clk 0:02:14.6]} 13... Nxd4 {[%clk 0:02:30.5]} 14.
Qxd4 {[%clk 0:02:06.6]} 14... O-O {[%clk 0:02:26.9]} 15. Nd2 {[%clk 0:02:06.4]}
15... Qc7 {[%clk 0:02:13.6]} 16. Bf4 {[%clk 0:01:57.8]} 16... Qc6 {[%clk
0:02:11]} 17. Nb3 {[%clk 0:01:57.6]} 17... Bb7 {[%clk 0:02:10.7]} 18. Na5 {[%clk
0:01:57.2]} 18... Qc8 {[%clk 0:02:06.3]} 19. Qb6 {[%clk 0:01:56.5]} 19... Be4
{[%clk 0:02:00.5]} 20. Qe3 {[%clk 0:01:27.2]} 20... Bc5 {[%clk 0:01:57.4]} 21.
Qe2 {[%clk 0:01:11.1]} 21... Rd8 {[%clk 0:01:51]} 22. Rad1 {[%clk 0:01:10.6]}
22... Bb6 {[%clk 0:01:31.9]} 23. Nb3 {[%clk 0:01:09.7]} 23... Qc6 {[%clk
0:01:27.6]} 24. Bg5 {[%clk 0:00:42.1]} 24... Bg6 {[%clk 0:01:14.2]} 25. c5
{[%clk 0:00:37.2]} 25... Bc7 {[%clk 0:01:02.5]} 26. Nd4 {[%clk 0:00:26.2]} 26...
Qxa4 {[%clk 0:00:59.4]} 27. Nxe6 {[%clk 0:00:14.4]} 27... fxe6 {[%clk
0:00:55.5]} 28. Bxf6 {[%clk 0:00:13]} 28... gxf6 {[%clk 0:00:50.4]} 29. Qxe6+
{[%clk 0:00:12.9]} 29... Bf7 {[%clk 0:00:49]} 30. Qe7 {[%clk 0:00:13.1]} 30...
Rxd1 {[%clk 0:00:43.1]} 31. Re4 {[%clk 0:00:13.2]} 31... Re8 {[%clk 0:00:29.4]}
32. Rg4+ {[%clk 0:00:06]} 32... Bg6 {[%clk 0:00:26.5]} 33. Qxe8+ {[%clk
0:00:06.5]} 33... Qxe8 {[%clk 0:00:25.5]} 0-1

[Event "Late-Titled-Tuesday-Blitz-June-04-2024"]
[Site "Chess.com"]
[Date "2024.06.04"]
[Round "1"]
[White "ACH19"]
[Black "GlavkonVVS"]
[Result "1-0"]
[WhiteElo "2247"]
[BlackElo "2557"]
[TimeControl "180+1"]
[EndTime "14:06:52 PDT"]
[Termination "ACH19 won by resignation"]

1. e4 {[%clk 0:03:00.1]} 1... Nf6 {[%clk 0:02:59.1]} 2. e5 {[%clk 0:02:58.6]}
2... Nd5 {[%clk 0:02:59.1]} 3. d4 {[%clk 0:02:57.7]} 3... d6 {[%clk 0:02:59.1]}
4. Nf3 {[%clk 0:02:57.8]} 4... Bg4 {[%clk 0:02:58.5]} 5. Be2 {[%clk 0:02:57.4]}
5... e6 {[%clk 0:02:55.7]} 6. O-O {[%clk 0:02:56.6]} 6... Be7 {[%clk 0:02:55.9]}
7. c4 {[%clk 0:02:50.5]} 7... Nb6 {[%clk 0:02:55.7]} 8. exd6 {[%clk 0:02:50.1]}
8... cxd6 {[%clk 0:02:55.8]} 9. b3 {[%clk 0:02:48]} 9... O-O {[%clk 0:02:55.4]}
10. Nbd2 {[%clk 0:02:47.1]} 10... d5 {[%clk 0:02:54.3]} 11. c5 {[%clk
0:02:45.4]} 11... Nc8 {[%clk 0:02:53]} 12. Bb2 {[%clk 0:02:45.5]} 12... Nc6
{[%clk 0:02:52.9]} 13. h3 {[%clk 0:02:44.5]} 13... Bf5 {[%clk 0:02:46.5]} 14. a3
{[%clk 0:02:41]} 14... b6 {[%clk 0:02:37.8]} 15. b4 {[%clk 0:02:38.4]} 15...
bxc5 {[%clk 0:02:37.7]} 16. dxc5 {[%clk 0:02:33]} 16... Rb8 {[%clk 0:02:31]} 17.
Ne5 {[%clk 0:01:58.9]} 17... Qc7 {[%clk 0:02:16.3]} 18. Nxc6 {[%clk 0:01:55.5]}
18... Qxc6 {[%clk 0:02:15.4]} 19. Bd4 {[%clk 0:01:52]} 19... a5 {[%clk
0:02:02.2]} 20. b5 {[%clk 0:01:44.9]} 20... Rxb5 {[%clk 0:02:01.9]} 21. Bxb5
{[%clk 0:01:43.2]} 21... Qxb5 {[%clk 0:02:02.3]} 22. Qc1 {[%clk 0:01:21.9]}
22... Na7 {[%clk 0:01:58.8]} 23. Nf3 {[%clk 0:01:07]} 23... Rc8 {[%clk
0:01:54.6]} 24. Qe3 {[%clk 0:01:02.8]} 24... Nc6 {[%clk 0:01:46.3]} 25. Rac1
{[%clk 0:00:55.9]} 25... Be4 {[%clk 0:01:23.6]} 26. Ne5 {[%clk 0:00:28.1]} 26...
Nxd4 {[%clk 0:01:20.7]} 27. Qxd4 {[%clk 0:00:28.6]} 27... Rxc5 {[%clk
0:01:17.4]} 28. Rxc5 {[%clk 0:00:21.9]} 28... Bxc5 {[%clk 0:01:16.4]} 29. Rc1
{[%clk 0:00:19.6]} 29... Bc2 {[%clk 0:00:59.2]} 30. Qc3 {[%clk 0:00:16.2]} 30...
f6 {[%clk 0:00:49.2]} 31. Qxc2 {[%clk 0:00:14.6]} 31... fxe5 {[%clk 0:00:35.6]}
32. Qxc5 {[%clk 0:00:14.1]} 32... Qe2 {[%clk 0:00:32.4]} 33. Qc8+ {[%clk
0:00:13.4]} 33... Kf7 {[%clk 0:00:32.7]} 34. Rc7+ {[%clk 0:00:14]} 34... Kf6
{[%clk 0:00:32.3]} 35. Qf8+ {[%clk 0:00:09.8]} 35... Kg6 {[%clk 0:00:29.9]} 36.
Rxg7+ {[%clk 0:00:09.6]} 36... Kh5 {[%clk 0:00:29.7]} 37. Rxh7+ {[%clk
0:00:07.5]} 1-0